[Event "Early-Titled-Tuesday-Blitz-March-19-2024"]
[Site "Chess.com"]
[Date "2024.03.19"]
[Round "7"]
[White "dianamirza"]
[Black "missponyo10"]
[Result "0-1"]
[WhiteElo "1986"]
[BlackElo "2233"]
[TimeControl "180+1"]
[EndTime "9:14:23 PDT"]
[Termination "missponyo10 won by resignation"]

1. e4 {[%clk 0:02:41.4]} 1... c5 {[%clk 0:02:58.3]} 2. Nf3 {[%clk 0:02:40.4]}
2... d6 {[%clk 0:02:58]} 3. d4 {[%clk 0:02:40.9]} 3... cxd4 {[%clk 0:02:58.5]}
4. Nxd4 {[%clk 0:02:41.8]} 4... Nf6 {[%clk 0:02:58.8]} 5. Nc3 {[%clk 0:02:42.7]}
5... a6 {[%clk 0:02:58.9]} 6. Be3 {[%clk 0:02:43.3]} 6... e5 {[%clk 0:02:53]} 7.
Nf5 {[%clk 0:02:42.5]} 7... Bxf5 {[%clk 0:02:51.7]} 8. exf5 {[%clk 0:02:42.6]}
8... d5 {[%clk 0:02:48.8]} 9. Bg5 {[%clk 0:02:30.1]} 9... d4 {[%clk 0:02:44.3]}
10. Ne4 {[%clk 0:02:29.9]} 10... Be7 {[%clk 0:02:43.8]} 11. Bc4 {[%clk
0:02:26.3]} 11... Nc6 {[%clk 0:02:41.2]} 12. a4 {[%clk 0:02:23.1]} 12... Nxe4
{[%clk 0:02:37.1]} 13. Bxe7 {[%clk 0:02:18.8]} 13... Qxe7 {[%clk 0:02:35.5]} 14.
Bd5 {[%clk 0:02:17.2]} 14... Nf6 {[%clk 0:02:34.2]} 15. Bxc6+ {[%clk 0:02:12.2]}
15... bxc6 {[%clk 0:02:35.1]} 16. Qd3 {[%clk 0:02:09.7]} 16... O-O {[%clk
0:02:33]} 17. O-O {[%clk 0:02:09]} 17... c5 {[%clk 0:02:31.8]} 18. f4 {[%clk
0:02:05.6]} 18... e4 {[%clk 0:02:30.9]} 19. Qh3 {[%clk 0:02:03.8]} 19... Nd5
{[%clk 0:02:27.9]} 20. g4 {[%clk 0:02:03.8]} 20... Ne3 {[%clk 0:02:26.6]} 21.
Rfe1 {[%clk 0:02:02.7]} 21... Nxc2 {[%clk 0:02:25]} 22. Rf1 {[%clk 0:02:00.3]}
22... Nxa1 {[%clk 0:02:24.2]} 23. Rxa1 {[%clk 0:01:59.9]} 23... e3 {[%clk
0:02:24.1]} 0-1

[Event "Early-Titled-Tuesday-Blitz-March-19-2024"]
[Site "Chess.com"]
[Date "2024.03.19"]
[Round "7"]
[White "NtcPou"]
[Black "carloseduar100"]
[Result "0-1"]
[WhiteElo "1979"]
[BlackElo "2251"]
[TimeControl "180+1"]
[EndTime "9:14:42 PDT"]
[Termination "carloseduar100 won by resignation"]

1. e4 {[%clk 0:03:00.9]} 1... e6 {[%clk 0:02:56.5]} 2. d4 {[%clk 0:02:59.8]}
2... d5 {[%clk 0:02:53.1]} 3. Nd2 {[%clk 0:02:59.8]} 3... c5 {[%clk 0:02:51.9]}
4. Ngf3 {[%clk 0:02:59]} 4... Nc6 {[%clk 0:02:51.3]} 5. exd5 {[%clk 0:02:58.4]}
5... Qxd5 {[%clk 0:02:47.1]} 6. Bc4 {[%clk 0:02:57.8]} 6... Qd7 {[%clk
0:02:45.6]} 7. O-O {[%clk 0:02:57.1]} 7... cxd4 {[%clk 0:02:46.1]} 8. Nb3 {[%clk
0:02:57.1]} 8... Nf6 {[%clk 0:02:46.4]} 9. Re1 {[%clk 0:02:55]} 9... a6 {[%clk
0:02:40.4]} 10. Nbxd4 {[%clk 0:02:50.2]} 10... Nxd4 {[%clk 0:02:40.5]} 11. Nxd4
{[%clk 0:02:50.6]} 11... Qc7 {[%clk 0:02:40.8]} 12. Bb3 {[%clk 0:02:38.4]} 12...
Bd6 {[%clk 0:02:40.1]} 13. h3 {[%clk 0:02:38.6]} 13... O-O {[%clk 0:02:39.3]}
14. Bg5 {[%clk 0:02:37.4]} 14... h6 {[%clk 0:02:37.9]} 15. Bxf6 {[%clk
0:02:35.7]} 15... gxf6 {[%clk 0:02:38.8]} 16. Qh5 {[%clk 0:02:35.8]} 16... Kh7
{[%clk 0:02:34.7]} 17. Re4 {[%clk 0:02:35.3]} 17... Rg8 {[%clk 0:02:31.3]} 18.
Rh4 {[%clk 0:02:33.7]} 18... Rg6 {[%clk 0:02:31]} 19. c3 {[%clk 0:02:34.1]}
19... Bd7 {[%clk 0:02:29.1]} 20. Re1 {[%clk 0:02:31.6]} 20... Rag8 {[%clk
0:02:27.9]} 21. g4 {[%clk 0:02:28.4]} 21... f5 {[%clk 0:02:21.1]} 22. Kh1 {[%clk
0:02:22]} 22... Be7 {[%clk 0:02:04.9]} 23. gxf5 {[%clk 0:02:18.3]} 23... Bc6+
{[%clk 0:02:04.7]} 24. Nxc6 {[%clk 0:02:11.1]} 24... Qxc6+ {[%clk 0:02:05.6]}
25. f3 {[%clk 0:02:11.6]} 25... Bxh4 {[%clk 0:02:02]} 26. fxg6+ {[%clk
0:02:11.5]} 26... Rxg6 {[%clk 0:02:01.8]} 27. Qxh4 {[%clk 0:02:11.9]} 27...
Qxf3+ {[%clk 0:02:01.2]} 0-1

[Event "Early-Titled-Tuesday-Blitz-March-19-2024"]
[Site "Chess.com"]
[Date "2024.03.19"]
[Round "7"]
[White "ArmanGhevondyanchess"]
[Black "francyIM"]
[Result "0-1"]
[WhiteElo "2601"]
[BlackElo "2827"]
[TimeControl "180+1"]
[EndTime "9:15:31 PDT"]
[Termination "francyIM won by resignation"]

1. Nf3 {[%clk 0:02:53.6]} 1... c5 {[%clk 0:02:54.9]} 2. g3 {[%clk 0:02:53.4]}
2... Nc6 {[%clk 0:02:54]} 3. d4 {[%clk 0:02:53.9]} 3... cxd4 {[%clk 0:02:54.1]}
4. Nxd4 {[%clk 0:02:54.8]} 4... d5 {[%clk 0:02:43.5]} 5. Bg2 {[%clk 0:02:53.1]}
5... Nf6 {[%clk 0:02:40.5]} 6. O-O {[%clk 0:02:53.1]} 6... e6 {[%clk 0:02:35.8]}
7. c4 {[%clk 0:02:53.1]} 7... Bc5 {[%clk 0:02:35.7]} 8. Nb3 {[%clk 0:02:52.6]}
8... Bb6 {[%clk 0:02:35.8]} 9. cxd5 {[%clk 0:02:53.1]} 9... exd5 {[%clk
0:02:36.7]} 10. a4 {[%clk 0:02:53.1]} 10... O-O {[%clk 0:02:35.5]} 11. Nc3
{[%clk 0:02:49.7]} 11... d4 {[%clk 0:02:35.4]} 12. Nb5 {[%clk 0:02:50]} 12...
Re8 {[%clk 0:02:31.2]} 13. Bg5 {[%clk 0:02:48.7]} 13... h6 {[%clk 0:02:30.9]}
14. Bxf6 {[%clk 0:02:48.2]} 14... Qxf6 {[%clk 0:02:31.8]} 15. a5 {[%clk
0:02:48.7]} 15... Bg4 {[%clk 0:02:27]} 16. axb6 {[%clk 0:02:38]} 16... Bxe2
{[%clk 0:02:25.6]} 17. Qd2 {[%clk 0:02:35.5]} 17... Bxb5 {[%clk 0:02:25.6]} 18.
Rfd1 {[%clk 0:02:24.4]} 18... axb6 {[%clk 0:02:22.9]} 19. Rxa8 {[%clk
0:02:23.9]} 19... Rxa8 {[%clk 0:02:23.8]} 20. Bxc6 {[%clk 0:02:16]} 20... bxc6
{[%clk 0:02:09.1]} 21. Qb4 {[%clk 0:01:47.1]} 21... d3 {[%clk 0:01:50.1]} 22.
Nd4 {[%clk 0:01:43.6]} 22... Ra4 {[%clk 0:01:49.4]} 23. Qxb5 {[%clk 0:01:27.7]}
23... cxb5 {[%clk 0:01:41.7]} 0-1

[Event "Early-Titled-Tuesday-Blitz-March-19-2024"]
[Site "Chess.com"]
[Date "2024.03.19"]
[Round "7"]
[White "Muracle"]
[Black "BilicVladimir"]
[Result "1-0"]
[WhiteElo "2564"]
[BlackElo "2683"]
[TimeControl "180+1"]
[EndTime "9:15:33 PDT"]
[Termination "Muracle won by resignation"]

1. d4 {[%clk 0:03:00.9]} 1... d5 {[%clk 0:02:59.5]} 2. Nf3 {[%clk 0:03:01.8]}
2... c6 {[%clk 0:02:59.8]} 3. g3 {[%clk 0:03:02.7]} 3... Nf6 {[%clk 0:03:00.1]}
4. Bg2 {[%clk 0:02:53.2]} 4... Bf5 {[%clk 0:03:00.7]} 5. O-O {[%clk 0:02:54.1]}
5... e6 {[%clk 0:03:01]} 6. c4 {[%clk 0:02:51]} 6... Nbd7 {[%clk 0:02:59.9]} 7.
Qb3 {[%clk 0:02:51.2]} 7... Qb6 {[%clk 0:02:58.8]} 8. c5 {[%clk 0:02:51.7]} 8...
Qxb3 {[%clk 0:02:58.8]} 9. axb3 {[%clk 0:02:52.6]} 9... a6 {[%clk 0:02:59.3]}
10. b4 {[%clk 0:02:52.3]} 10... O-O-O {[%clk 0:02:59.1]} 11. Nfd2 {[%clk
0:02:45.9]} 11... e5 {[%clk 0:02:51.1]} 12. dxe5 {[%clk 0:02:37.6]} 12... Nxe5
{[%clk 0:02:50.8]} 13. Nc3 {[%clk 0:02:37.7]} 13... Be7 {[%clk 0:02:43.9]} 14.
Nb3 {[%clk 0:02:25.9]} 14... Ne4 {[%clk 0:02:35.6]} 15. Na4 {[%clk 0:02:21]}
15... Nc4 {[%clk 0:02:27.2]} 16. Nd4 {[%clk 0:02:12.2]} 16... Bg6 {[%clk
0:02:17.9]} 17. Bf4 {[%clk 0:02:02.7]} 17... f6 {[%clk 0:02:10.2]} 18. Bh3+
{[%clk 0:01:41.4]} 18... f5 {[%clk 0:01:40.3]} 19. Nxf5 {[%clk 0:01:37.6]} 19...
Kd7 {[%clk 0:01:30.5]} 20. Nxg7+ {[%clk 0:01:35.3]} 1-0

[Event "Early-Titled-Tuesday-Blitz-March-19-2024"]
[Site "Chess.com"]
[Date "2024.03.19"]
[Round "7"]
[White "GMBenjaminBok"]
[Black "Igor_Lysyj"]
[Result "0-1"]
[WhiteElo "2965"]
[BlackElo "2825"]
[TimeControl "180+1"]
[EndTime "9:16:14 PDT"]
[Termination "Igor_Lysyj won by resignation"]

1. c4 {[%clk 0:03:00.9]} 1... e6 {[%clk 0:02:59.2]} 2. g3 {[%clk 0:03:01]} 2...
d5 {[%clk 0:02:59.1]} 3. Bg2 {[%clk 0:03:01.7]} 3... Nf6 {[%clk 0:02:59.4]} 4.
Nf3 {[%clk 0:03:02]} 4... Be7 {[%clk 0:02:59.8]} 5. O-O {[%clk 0:02:55.4]} 5...
O-O {[%clk 0:02:59.8]} 6. b3 {[%clk 0:02:54.9]} 6... c5 {[%clk 0:02:59.2]} 7.
cxd5 {[%clk 0:02:52.6]} 7... Nxd5 {[%clk 0:02:58.8]} 8. Bb2 {[%clk 0:02:50.5]}
8... b6 {[%clk 0:02:58.1]} 9. d4 {[%clk 0:02:16.5]} 9... Bb7 {[%clk 0:02:57.8]}
10. dxc5 {[%clk 0:02:15.2]} 10... Bxc5 {[%clk 0:02:57.6]} 11. Nbd2 {[%clk
0:02:12.1]} 11... Qe7 {[%clk 0:02:57.6]} 12. a3 {[%clk 0:02:08.6]} 12... a5
{[%clk 0:02:57]} 13. b4 {[%clk 0:02:08.2]} 13... axb4 {[%clk 0:02:55.7]} 14.
axb4 {[%clk 0:02:09.1]} 14... Bxb4 {[%clk 0:02:50.7]} 15. Rxa8 {[%clk
0:02:08.3]} 15... Bxa8 {[%clk 0:02:50.6]} 16. Qa1 {[%clk 0:02:01.3]} 16... Nd7
{[%clk 0:02:49.5]} 17. Bxg7 {[%clk 0:02:00.7]} 17... Rc8 {[%clk 0:02:49.1]} 18.
Bb2 {[%clk 0:01:38.7]} 18... Nc3 {[%clk 0:02:47.9]} 19. e3 {[%clk 0:01:23.3]}
19... Bd5 {[%clk 0:02:40.2]} 20. Qa6 {[%clk 0:01:06.7]} 20... Ra8 {[%clk
0:02:32.2]} 21. Qd3 {[%clk 0:01:07]} 21... Nc5 {[%clk 0:02:29.4]} 22. Qd4 {[%clk
0:01:06.6]} 22... Ne2+ {[%clk 0:02:19.6]} 23. Kh1 {[%clk 0:01:04.9]} 23... Nxd4
{[%clk 0:02:19.8]} 24. Bxd4 {[%clk 0:01:05]} 24... Bxd2 {[%clk 0:02:14.7]} 25.
Nxd2 {[%clk 0:01:04.2]} 25... Bxg2+ {[%clk 0:02:13.5]} 26. Kxg2 {[%clk
0:01:05.1]} 26... e5 {[%clk 0:02:13.5]} 27. Bc3 {[%clk 0:01:02.8]} 27... Ra2
{[%clk 0:02:08.9]} 28. Rb1 {[%clk 0:00:57.8]} 28... Qb7+ {[%clk 0:01:54.7]} 29.
Kg1 {[%clk 0:00:54.4]} 29... Qd5 {[%clk 0:01:53.1]} 30. Rxb6 {[%clk 0:00:52.5]}
30... Rxd2 {[%clk 0:01:51]} 0-1

[Event "Early-Titled-Tuesday-Blitz-March-19-2024"]
[Site "Chess.com"]
[Date "2024.03.19"]
[Round "7"]
[White "ploxoi"]
[Black "andrew-blr"]
[Result "0-1"]
[WhiteElo "2439"]
[BlackElo "2610"]
[TimeControl "180+1"]
[EndTime "9:16:14 PDT"]
[Termination "andrew-blr won by checkmate"]

1. d4 {[%clk 0:03:00.7]} 1... d5 {[%clk 0:02:59.5]} 2. c4 {[%clk 0:03:01.3]}
2... dxc4 {[%clk 0:02:58.9]} 3. e4 {[%clk 0:03:01.2]} 3... b5 {[%clk 0:02:58.8]}
4. a4 {[%clk 0:03:01.2]} 4... c6 {[%clk 0:02:58.7]} 5. axb5 {[%clk 0:02:59.6]}
5... cxb5 {[%clk 0:02:57.9]} 6. Nc3 {[%clk 0:03:00.1]} 6... Qb6 {[%clk
0:02:57.5]} 7. Nd5 {[%clk 0:02:44]} 7... Qb7 {[%clk 0:02:56.8]} 8. Bf4 {[%clk
0:02:42.6]} 8... e5 {[%clk 0:02:56]} 9. Bxe5 {[%clk 0:02:39.7]} 9... Nd7 {[%clk
0:02:54.2]} 10. Bg3 {[%clk 0:02:32.9]} 10... Ngf6 {[%clk 0:02:41.2]} 11. Nc7+
{[%clk 0:02:32.4]} 11... Kd8 {[%clk 0:02:41]} 12. Nxa8 {[%clk 0:02:33]} 12...
Bb4+ {[%clk 0:02:40.6]} 13. Qd2 {[%clk 0:02:25.4]} 13... Bxd2+ {[%clk
0:02:39.2]} 14. Kxd2 {[%clk 0:02:26.3]} 14... Nxe4+ {[%clk 0:02:38.7]} 15. Kc2
{[%clk 0:02:26.4]} 15... Nxg3 {[%clk 0:02:38.7]} 16. hxg3 {[%clk 0:02:26.6]}
16... Qe4+ {[%clk 0:02:37.2]} 17. Kc3 {[%clk 0:02:16.9]} 17... Qxa8 {[%clk
0:02:32.5]} 18. Nf3 {[%clk 0:02:15.7]} 18... Nb6 {[%clk 0:02:31.2]} 19. Ne5
{[%clk 0:02:14.3]} 19... Nd5+ {[%clk 0:02:28.2]} 20. Kd2 {[%clk 0:02:13.2]}
20... Be6 {[%clk 0:02:27.4]} 21. Be2 {[%clk 0:02:10.7]} 21... f6 {[%clk
0:02:00.4]} 22. Rxa7 {[%clk 0:02:05.9]} 22... Qc8 {[%clk 0:01:53.5]} 23. Nf3
{[%clk 0:00:50.5]} 23... c3+ {[%clk 0:01:52]} 24. bxc3 {[%clk 0:00:50.7]} 24...
Qxc3+ {[%clk 0:01:51.3]} 25. Kd1 {[%clk 0:00:51.4]} 25... Ne3+ {[%clk 0:01:47]}
26. fxe3 {[%clk 0:00:49.4]} 26... Bb3# {[%clk 0:01:47.6]} 0-1

[Event "Early-Titled-Tuesday-Blitz-March-19-2024"]
[Site "Chess.com"]
[Date "2024.03.19"]
[Round "7"]
[White "FairChess_on_YouTube"]
[Black "Jospem"]
[Result "1/2-1/2"]
[WhiteElo "3138"]
[BlackElo "3070"]
[TimeControl "180+1"]
[EndTime "9:16:18 PDT"]
[Termination "Game drawn by repetition"]

1. Nf3 {[%clk 0:03:00.9]} 1... c5 {[%clk 0:02:59.2]} 2. g3 {[%clk 0:03:01]} 2...
Nc6 {[%clk 0:02:59.5]} 3. Bg2 {[%clk 0:03:01.5]} 3... g6 {[%clk 0:02:59.8]} 4.
c4 {[%clk 0:03:00.2]} 4... Bg7 {[%clk 0:03:00]} 5. Nc3 {[%clk 0:03:00.8]} 5...
d6 {[%clk 0:02:59.9]} 6. O-O {[%clk 0:03:00.8]} 6... e6 {[%clk 0:03:00.2]} 7. b3
{[%clk 0:02:57.8]} 7... Nge7 {[%clk 0:03:00.4]} 8. Bb2 {[%clk 0:02:58.2]} 8...
O-O {[%clk 0:03:00.9]} 9. e3 {[%clk 0:02:58.8]} 9... d5 {[%clk 0:02:54.5]} 10.
cxd5 {[%clk 0:02:57.4]} 10... exd5 {[%clk 0:02:55.4]} 11. Rc1 {[%clk 0:02:49.4]}
11... b6 {[%clk 0:02:54.6]} 12. d4 {[%clk 0:02:47.5]} 12... cxd4 {[%clk
0:02:50.4]} 13. Nxd4 {[%clk 0:02:47.4]} 13... Nxd4 {[%clk 0:02:50.5]} 14. exd4
{[%clk 0:02:47.5]} 14... Be6 {[%clk 0:02:49.1]} 15. Ba3 {[%clk 0:02:40.4]} 15...
Rc8 {[%clk 0:02:20.9]} 16. Qd2 {[%clk 0:02:30]} 16... Qd7 {[%clk 0:02:03.6]} 17.
Bxe7 {[%clk 0:02:04.5]} 17... Qxe7 {[%clk 0:02:04.5]} 18. Nxd5 {[%clk
0:02:04.9]} 18... Bxd5 {[%clk 0:01:52.2]} 19. Bxd5 {[%clk 0:02:04.3]} 19... Rcd8
{[%clk 0:01:51.4]} 20. Rfe1 {[%clk 0:01:59.9]} 20... Qd7 {[%clk 0:01:46.7]} 21.
Bc6 {[%clk 0:01:54]} 21... Qxd4 {[%clk 0:01:45]} 22. Qxd4 {[%clk 0:01:54.1]}
22... Bxd4 {[%clk 0:01:45.8]} 23. Kg2 {[%clk 0:01:52.9]} 23... Bc5 {[%clk
0:01:45.5]} 24. Rc2 {[%clk 0:01:52]} 24... Rd6 {[%clk 0:01:43.1]} 25. Bf3 {[%clk
0:01:51.5]} 25... Rfd8 {[%clk 0:01:42.5]} 26. h4 {[%clk 0:01:50.7]} 26... h5
{[%clk 0:01:42.1]} 27. Rce2 {[%clk 0:01:48]} 27... Kg7 {[%clk 0:01:41]} 28. Re8
{[%clk 0:01:41]} 28... Rd2 {[%clk 0:01:31.6]} 29. Rxd8 {[%clk 0:01:38.1]} 29...
Rxd8 {[%clk 0:01:30.6]} 30. Rd1 {[%clk 0:01:38.2]} 30... Rd4 {[%clk 0:01:28.8]}
31. Be2 {[%clk 0:01:33.2]} 31... Rxd1 {[%clk 0:01:28.3]} 32. Bxd1 {[%clk
0:01:32.8]} 32... f5 {[%clk 0:01:28.7]} 33. f4 {[%clk 0:01:31.2]} 33... Kf6
{[%clk 0:01:29.2]} 34. Kf3 {[%clk 0:01:31.3]} 34... a5 {[%clk 0:01:29.9]} 35.
Be2 {[%clk 0:01:31.7]} 35... Bb4 {[%clk 0:01:30.2]} 36. Bb5 {[%clk 0:01:32]}
36... Bc5 {[%clk 0:01:30.7]} 37. Be8 {[%clk 0:01:31.8]} 37... Bb4 {[%clk
0:01:31.1]} 38. Kg2 {[%clk 0:01:31.6]} 38... Bc5 {[%clk 0:01:31.5]} 39. Kf3
{[%clk 0:01:32.2]} 39... Bb4 {[%clk 0:01:32.1]} 40. Kg2 {[%clk 0:01:32.6]} 40...
Bc5 {[%clk 0:01:32.8]} 41. Kf3 {[%clk 0:01:32.9]} 1/2-1/2

[Event "Early-Titled-Tuesday-Blitz-March-19-2024"]
[Site "Chess.com"]
[Date "2024.03.19"]
[Round "7"]
[White "Dacean99"]
[Black "hell3raiser"]
[Result "1-0"]
[WhiteElo "2639"]
[BlackElo "2365"]
[TimeControl "180+1"]
[EndTime "9:16:29 PDT"]
[Termination "Dacean99 won by resignation"]

1. e4 {[%clk 0:03:00.9]} 1... e5 {[%clk 0:02:54.6]} 2. Nf3 {[%clk 0:02:58.9]}
2... Nc6 {[%clk 0:02:54.4]} 3. d4 {[%clk 0:02:58.4]} 3... exd4 {[%clk
0:02:54.4]} 4. Bc4 {[%clk 0:02:57.7]} 4... Bc5 {[%clk 0:02:54.4]} 5. c3 {[%clk
0:02:57.2]} 5... Nf6 {[%clk 0:02:52.8]} 6. e5 {[%clk 0:02:57]} 6... d5 {[%clk
0:02:53]} 7. exf6 {[%clk 0:02:44.7]} 7... dxc4 {[%clk 0:02:52.5]} 8. fxg7 {[%clk
0:02:44.9]} 8... Rg8 {[%clk 0:02:52.2]} 9. cxd4 {[%clk 0:02:43.3]} 9... Nxd4
{[%clk 0:02:36.2]} 10. O-O {[%clk 0:02:34.4]} 10... Rxg7 {[%clk 0:02:26.2]} 11.
Be3 {[%clk 0:02:31.4]} 11... Nxf3+ {[%clk 0:02:10.7]} 12. Qxf3 {[%clk
0:02:32.3]} 12... Bxe3 {[%clk 0:02:00.3]} 13. Qxe3+ {[%clk 0:02:31.7]} 13... Be6
{[%clk 0:01:59.3]} 14. Nc3 {[%clk 0:02:30.8]} 14... Qd3 {[%clk 0:01:57]} 15. Qe5
{[%clk 0:02:25.6]} 15... Qg6 {[%clk 0:01:02.6]} 16. g3 {[%clk 0:02:24.7]} 16...
O-O-O {[%clk 0:01:02.2]} 17. Nb5 {[%clk 0:02:19.6]} 17... Rd7 {[%clk 0:01:02.3]}
18. Rad1 {[%clk 0:02:07.6]} 18... f5 {[%clk 0:01:01.9]} 19. Nxa7+ {[%clk
0:01:51.9]} 19... Kb8 {[%clk 0:01:01]} 20. Nb5 {[%clk 0:01:52.5]} 20... Qf7
{[%clk 0:00:40.3]} 21. Rfe1 {[%clk 0:01:41.9]} 21... Bd5 {[%clk 0:00:39.7]} 22.
Qe8+ {[%clk 0:01:36.4]} 22... Qxe8 {[%clk 0:00:38.4]} 23. Rxe8+ {[%clk
0:01:37.3]} 1-0

[Event "Early-Titled-Tuesday-Blitz-March-19-2024"]
[Site "Chess.com"]
[Date "2024.03.19"]
[Round "7"]
[White "enriquebutti"]
[Black "FREDERICKtheMATE"]
[Result "0-1"]
[WhiteElo "2188"]
[BlackElo "2692"]
[TimeControl "180+1"]
[EndTime "9:16:30 PDT"]
[Termination "FREDERICKtheMATE won by resignation"]

1. d4 {[%clk 0:02:59]} 1... c6 {[%clk 0:03:00.9]} 2. c4 {[%clk 0:02:57.5]} 2...
d5 {[%clk 0:03:01.8]} 3. cxd5 {[%clk 0:02:57.2]} 3... cxd5 {[%clk 0:03:02.7]} 4.
Nc3 {[%clk 0:02:57.3]} 4... Nf6 {[%clk 0:03:03.3]} 5. Bg5 {[%clk 0:02:57]} 5...
Ne4 {[%clk 0:03:01.4]} 6. Nxe4 {[%clk 0:02:55.7]} 6... dxe4 {[%clk 0:03:02.3]}
7. a3 {[%clk 0:02:56.1]} 7... Nc6 {[%clk 0:03:02.1]} 8. d5 {[%clk 0:02:46.3]}
8... Ne5 {[%clk 0:02:48]} 9. Qd4 {[%clk 0:02:37.8]} 9... f6 {[%clk 0:02:48]} 10.
Qxe4 {[%clk 0:02:32.3]} 10... e6 {[%clk 0:02:47.2]} 11. dxe6 {[%clk 0:02:23.3]}
11... Bxe6 {[%clk 0:02:45.4]} 12. Bf4 {[%clk 0:02:18.8]} 12... Bd5 {[%clk
0:02:39.6]} 13. Qe3 {[%clk 0:02:08]} 13... Bd6 {[%clk 0:02:34.5]} 14. Rd1 {[%clk
0:02:00.8]} 14... O-O {[%clk 0:02:27.9]} 15. Rxd5 {[%clk 0:01:50.4]} 15... Bb4+
{[%clk 0:02:27.2]} 16. axb4 {[%clk 0:01:50.1]} 16... Qxd5 {[%clk 0:02:26.8]} 17.
Bxe5 {[%clk 0:01:43.9]} 17... fxe5 {[%clk 0:02:21]} 18. Nf3 {[%clk 0:01:32.5]}
18... Rad8 {[%clk 0:02:09.2]} 19. Nd2 {[%clk 0:01:23.5]} 19... Kh8 {[%clk
0:02:08.5]} 20. f3 {[%clk 0:01:17.6]} 20... Rf4 {[%clk 0:02:04.7]} 21. Ne4
{[%clk 0:01:12.6]} 21... Qa2 {[%clk 0:01:58]} 22. Qc3 {[%clk 0:01:07.4]} 22...
Qb1+ {[%clk 0:01:56]} 23. Kf2 {[%clk 0:01:03.7]} 23... Qxe4 {[%clk 0:01:53.6]}
24. e3 {[%clk 0:01:01.1]} 24... Rff8 {[%clk 0:01:51.2]} 25. Bc4 {[%clk
0:00:54.6]} 25... Rc8 {[%clk 0:01:45.7]} 26. Bd3 {[%clk 0:00:51]} 26... Rxc3
{[%clk 0:01:43.1]} 27. Bxe4 {[%clk 0:00:50.6]} 27... Rb3 {[%clk 0:01:43.2]} 0-1

[Event "Early-Titled-Tuesday-Blitz-March-19-2024"]
[Site "Chess.com"]
[Date "2024.03.19"]
[Round "7"]
[White "Aleksandar-Topalov"]
[Black "Dewarfd"]
[Result "1-0"]
[WhiteElo "2276"]
[BlackElo "2085"]
[TimeControl "180+1"]
[EndTime "9:16:30 PDT"]
[Termination "Aleksandar-Topalov won by checkmate"]

1. b3 {[%clk 0:03:00.9]} 1... Nf6 {[%clk 0:02:51.5]} 2. Bb2 {[%clk 0:02:59.8]}
2... g6 {[%clk 0:02:51.9]} 3. Bxf6 {[%clk 0:02:59]} 3... exf6 {[%clk 0:02:51.7]}
4. c4 {[%clk 0:02:59.6]} 4... f5 {[%clk 0:02:50.9]} 5. Nc3 {[%clk 0:03:00.2]}
5... Bg7 {[%clk 0:02:50.8]} 6. e3 {[%clk 0:03:00.4]} 6... O-O {[%clk 0:02:50.7]}
7. Nge2 {[%clk 0:03:00.5]} 7... Re8 {[%clk 0:02:51]} 8. g3 {[%clk 0:03:00.8]}
8... c6 {[%clk 0:02:51.3]} 9. Bg2 {[%clk 0:03:00.9]} 9... b6 {[%clk 0:02:49.4]}
10. O-O {[%clk 0:02:59.4]} 10... Bb7 {[%clk 0:02:49.5]} 11. d4 {[%clk
0:02:59.2]} 11... d5 {[%clk 0:02:45.6]} 12. cxd5 {[%clk 0:02:59.2]} 12... cxd5
{[%clk 0:02:45.5]} 13. Nf4 {[%clk 0:02:56.9]} 13... g5 {[%clk 0:02:16.9]} 14.
Nfxd5 {[%clk 0:02:54.2]} 14... f4 {[%clk 0:02:17]} 15. gxf4 {[%clk 0:02:52.8]}
15... gxf4 {[%clk 0:02:16.9]} 16. Nxf4 {[%clk 0:02:49.7]} 16... Bxg2 {[%clk
0:02:15.2]} 17. Kxg2 {[%clk 0:02:39.3]} 17... Nd7 {[%clk 0:02:12.7]} 18. Ncd5
{[%clk 0:02:32.1]} 18... Nf6 {[%clk 0:02:10.6]} 19. Nxf6+ {[%clk 0:02:31.4]}
19... Qxf6 {[%clk 0:02:10.2]} 20. Qf3 {[%clk 0:02:29.4]} 20... Kh8 {[%clk
0:02:03.1]} 21. Nh5 {[%clk 0:02:09.2]} 21... Qg6+ {[%clk 0:01:55.1]} 22. Kh1
{[%clk 0:02:09]} 22... Rg8 {[%clk 0:01:27.6]} 23. Rg1 {[%clk 0:02:08.6]} 23...
Qh6 {[%clk 0:01:22]} 24. Rxg7 {[%clk 0:02:03.8]} 24... Rxg7 {[%clk 0:01:15]} 25.
Qxa8+ {[%clk 0:02:02.9]} 25... Rg8 {[%clk 0:01:13.2]} 26. Qf3 {[%clk 0:01:59.2]}
26... Rg5 {[%clk 0:01:10]} 27. Ng3 {[%clk 0:01:57.1]} 27... Kg8 {[%clk
0:01:06.3]} 28. Rc1 {[%clk 0:01:56]} 28... Qe6 {[%clk 0:01:06.6]} 29. e4 {[%clk
0:01:43.8]} 29... Qg4 {[%clk 0:01:00.4]} 30. Qxg4 {[%clk 0:01:42.5]} 30... Rxg4
{[%clk 0:01:01.3]} 31. f3 {[%clk 0:01:37.9]} 31... Rf4 {[%clk 0:00:59.4]} 32.
Nf5 {[%clk 0:01:35.9]} 32... Rxf3 {[%clk 0:00:56.8]} 33. Rc8# {[%clk 0:01:33.9]}
1-0

[Event "Early-Titled-Tuesday-Blitz-March-19-2024"]
[Site "Chess.com"]
[Date "2024.03.19"]
[Round "7"]
[White "Kostukov_Alex"]
[Black "ural58"]
[Result "0-1"]
[WhiteElo "2237"]
[BlackElo "2472"]
[TimeControl "180+1"]
[EndTime "9:16:35 PDT"]
[Termination "ural58 won on time"]

1. g3 {[%clk 0:03:00.9]} 1... d5 {[%clk 0:02:57.2]} 2. Bg2 {[%clk 0:02:59.7]}
2... Nc6 {[%clk 0:02:57.6]} 3. d4 {[%clk 0:02:59.7]} 3... Bf5 {[%clk 0:02:57.3]}
4. c4 {[%clk 0:02:47.5]} 4... e6 {[%clk 0:02:50.8]} 5. Nc3 {[%clk 0:02:16.5]}
5... Nb4 {[%clk 0:02:44.5]} 6. e4 {[%clk 0:02:11.3]} 6... dxe4 {[%clk
0:02:43.8]} 7. Nxe4 {[%clk 0:02:11]} 7... Qxd4 {[%clk 0:02:40.3]} 8. Qa4+ {[%clk
0:01:33.5]} 8... c6 {[%clk 0:02:31.1]} 9. Ne2 {[%clk 0:01:14.7]} 9... Qxc4
{[%clk 0:02:28.1]} 10. N2c3 {[%clk 0:00:24.9]} 10... Nd3+ {[%clk 0:02:21.2]} 11.
Kf1 {[%clk 0:00:07.7]} 11... Qxa4 {[%clk 0:02:22.1]} 12. Nxa4 {[%clk 0:00:06.6]}
12... Nxc1 {[%clk 0:02:13.6]} 13. Rxc1 {[%clk 0:00:05.6]} 13... O-O-O {[%clk
0:02:14.5]} 14. Nac3 {[%clk 0:00:04]} 14... h6 {[%clk 0:02:12]} 15. h3 {[%clk
0:00:03.6]} 15... Bb4 {[%clk 0:02:07.1]} 16. g4 {[%clk 0:00:03.1]} 16... Bh7
{[%clk 0:02:00]} 17. Ke2 {[%clk 0:00:02.4]} 17... f5 {[%clk 0:02:00.9]} 18. Ng3
{[%clk 0:00:01.1]} 18... Nf6 {[%clk 0:01:56.8]} 0-1